[Event "*** Titled Tuesday Blitz"]
[Site "Chess.com"]
[Date "2018.07.03"]
[Round "3"]
[White "DishonorOnYourCow"]
[Black "icychess54"]
[Result "0-1"]
[WhiteElo "2238"]
[BlackElo "2102"]
[TimeControl "180+2"]
[EndTime "13:37:07 PDT"]
[Termination "icychess54 won by resignation"]

1. d4 {[%clk 0:03:01.9]} 1... d5 {[%clk 0:02:59.6]} 2. c4 {[%clk 0:02:57.8]}
2... c6 {[%clk 0:03:00.3]} 3. Nf3 {[%clk 0:02:55.2]} 3... Nf6 {[%clk 0:03:01.4]}
4. e3 {[%clk 0:02:53.9]} 4... e6 {[%clk 0:03:02.7]} 5. b3 {[%clk 0:02:54.4]}
5... Nbd7 {[%clk 0:03:03.9]} 6. Bb2 {[%clk 0:02:49.7]} 6... Be7 {[%clk
0:03:05.1]} 7. Bd3 {[%clk 0:02:51]} 7... O-O {[%clk 0:03:06.2]} 8. Nbd2 {[%clk
0:02:52.6]} 8... b6 {[%clk 0:03:07.1]} 9. O-O {[%clk 0:02:54.1]} 9... Bb7 {[%clk
0:03:08.5]} 10. Rc1 {[%clk 0:02:54.3]} 10... Rc8 {[%clk 0:03:08.9]} 11. Ne5
{[%clk 0:02:55.7]} 11... c5 {[%clk 0:03:06.6]} 12. dxc5 {[%clk 0:02:50.6]} 12...
Nxc5 {[%clk 0:03:03.8]} 13. Bb1 {[%clk 0:02:48.5]} 13... dxc4 {[%clk 0:02:50.2]}
14. Ndxc4 {[%clk 0:02:46.6]} 14... b5 {[%clk 0:02:33.9]} 15. Nd2 {[%clk
0:02:30.1]} 15... Nd5 {[%clk 0:02:19.3]} 16. Ne4 {[%clk 0:02:05.5]} 16... Nxe4
{[%clk 0:02:07.3]} 17. Rxc8 {[%clk 0:02:03.5]} 17... Qxc8 {[%clk 0:02:03.5]} 18.
Bxe4 {[%clk 0:02:03.2]} 18... Nxe3 {[%clk 0:01:21.3]} 19. fxe3 {[%clk
0:01:15.7]} 19... Bxe4 {[%clk 0:01:19.8]} 20. Qd4 {[%clk 0:01:10.9]} 20... Qc2
{[%clk 0:00:58.3]} 21. Rf2 {[%clk 0:00:34.5]} 21... Qb1+ {[%clk 0:00:56]} 22.
Rf1 {[%clk 0:00:35.6]} 22... Qc2 {[%clk 0:00:57.5]} 23. Rf2 {[%clk 0:00:20.7]}
23... Bc5 {[%clk 0:00:58.4]} 24. Rxc2 {[%clk 0:00:12.5]} 24... Bxd4 {[%clk
0:00:59.4]} 25. Re2 {[%clk 0:00:13.6]} 25... Bxb2 {[%clk 0:00:39.9]} 26. Rxb2
{[%clk 0:00:15.5]} 26... Rd8 {[%clk 0:00:39.5]} 27. a4 {[%clk 0:00:14.6]} 27...
b4 {[%clk 0:00:37.9]} 28. Nc4 {[%clk 0:00:13.6]} 28... Rd1+ {[%clk 0:00:30.1]}
29. Kf2 {[%clk 0:00:13.6]} 29... Kf8 {[%clk 0:00:23.7]} 30. Rd2 {[%clk
0:00:11.3]} 30... Rxd2+ {[%clk 0:00:21.7]} 31. Nxd2 {[%clk 0:00:12.2]} 31... Bc2
{[%clk 0:00:23.6]} 32. Ke2 {[%clk 0:00:13.2]} 32... Ke7 {[%clk 0:00:24.7]} 33.
e4 {[%clk 0:00:14.5]} 33... Kd6 {[%clk 0:00:24.4]} 34. Ke3 {[%clk 0:00:15.6]}
34... Kc5 {[%clk 0:00:23.4]} 35. g3 {[%clk 0:00:14.9]} 35... f6 {[%clk 0:00:22]}
36. h4 {[%clk 0:00:15.5]} 36... g6 {[%clk 0:00:21.7]} 37. g4 {[%clk 0:00:15.9]}
37... h5 {[%clk 0:00:22.3]} 38. gxh5 {[%clk 0:00:16.7]} 38... gxh5 {[%clk
0:00:24.2]} 39. Kf4 {[%clk 0:00:17.8]} 39... Kd4 {[%clk 0:00:23.9]} 40. Nc4
{[%clk 0:00:07.9]} 40... Bxb3 {[%clk 0:00:23.5]} 41. Na5 {[%clk 0:00:09]} 41...
Bxa4 {[%clk 0:00:23.7]} 42. Nb7 {[%clk 0:00:08.8]} 42... b3 {[%clk 0:00:24]} 43.
Nd8 {[%clk 0:00:08.7]} 43... b2 {[%clk 0:00:24]} 44. Nxe6+ {[%clk 0:00:10]}
44... Kc4 {[%clk 0:00:25.4]} 45. Kf5 {[%clk 0:00:09.7]} 45... b1=Q {[%clk
0:00:26.7]} 46. Kxf6 {[%clk 0:00:11.6]} 46... Qf1+ {[%clk 0:00:27.3]} 47. Ke7
{[%clk 0:00:12.1]} 47... Qf2 {[%clk 0:00:27]} 48. Ng5 {[%clk 0:00:13.1]} 48...
Qxh4 {[%clk 0:00:27.8]} 49. Kf6 {[%clk 0:00:14.2]} 49... Kd4 {[%clk 0:00:27.8]}
50. e5 {[%clk 0:00:15.5]} 50... Qxg5+ {[%clk 0:00:28.3]} 51. Kxg5 {[%clk
0:00:16.5]} 51... Kxe5 {[%clk 0:00:29.8]} 52. Kxh5 {[%clk 0:00:18.1]} 52... Bd1+
{[%clk 0:00:29.1]} 53. Kh4 {[%clk 0:00:19.1]} 53... a5 {[%clk 0:00:30.6]} 54.
Kg3 {[%clk 0:00:20.7]} 54... a4 {[%clk 0:00:32.5]} 55. Kf2 {[%clk 0:00:22.4]}
55... a3 {[%clk 0:00:34.4]} 56. Ke1 {[%clk 0:00:23.9]} 56... a2 {[%clk
0:00:36.1]} 57. Kd2 {[%clk 0:00:25.4]} 57... a1=Q {[%clk 0:00:38]} 0-1

[Event "*** Titled Tuesday Blitz"]
[Site "Chess.com"]
[Date "2018.07.03"]
[Round "3"]
[White "arctic_t00"]
[Black "colegiodemadrid"]
[Result "1-0"]
[WhiteElo "2320"]
[BlackElo "2211"]
[TimeControl "180+2"]
[EndTime "13:37:11 PDT"]
[Termination "arctic_t00 won by checkmate"]

1. d4 {[%clk 0:02:59.6]} 1... Nf6 {[%clk 0:02:57.4]} 2. Nf3 {[%clk 0:03:00.6]}
2... c5 {[%clk 0:02:58.2]} 3. d5 {[%clk 0:03:01.3]} 3... b5 {[%clk 0:02:58.6]}
4. Bg5 {[%clk 0:03:02.1]} 4... Qb6 {[%clk 0:03:00]} 5. a4 {[%clk 0:03:01.8]}
5... b4 {[%clk 0:03:00.8]} 6. a5 {[%clk 0:03:02.1]} 6... Qc7 {[%clk 0:02:59.8]}
7. Bxf6 {[%clk 0:02:55.6]} 7... gxf6 {[%clk 0:02:59.7]} 8. e4 {[%clk 0:02:56.3]}
8... d6 {[%clk 0:03:00.6]} 9. Nbd2 {[%clk 0:02:47.3]} 9... f5 {[%clk 0:02:56.6]}
10. Bb5+ {[%clk 0:02:26.3]} 10... Bd7 {[%clk 0:02:54.4]} 11. Bxd7+ {[%clk
0:02:17.4]} 11... Qxd7 {[%clk 0:02:54.6]} 12. O-O {[%clk 0:02:17.3]} 12... Bg7
{[%clk 0:02:54.5]} 13. exf5 {[%clk 0:01:53]} 13... Qxf5 {[%clk 0:02:51.4]} 14.
Nc4 {[%clk 0:01:46.3]} 14... O-O {[%clk 0:02:45.9]} 15. Re1 {[%clk 0:01:39.4]}
15... Bf6 {[%clk 0:02:45.6]} 16. Qd2 {[%clk 0:01:27.7]} 16... Na6 {[%clk
0:02:44.5]} 17. Rad1 {[%clk 0:01:25]} 17... Nc7 {[%clk 0:02:45.6]} 18. h3 {[%clk
0:01:12.2]} 18... Nb5 {[%clk 0:02:36.4]} 19. Ne3 {[%clk 0:01:02]} 19... Qg6
{[%clk 0:02:29.9]} 20. Ng4 {[%clk 0:01:01.4]} 20... Bxb2 {[%clk 0:02:23.5]} 21.
Rxe7 {[%clk 0:00:45.4]} 21... h5 {[%clk 0:02:23.5]} 22. Nh4 {[%clk 0:00:39.4]}
22... Qg7 {[%clk 0:02:04]} 23. Nf5 {[%clk 0:00:28.1]} 23... Qg6 {[%clk
0:01:55.4]} 24. Re6 {[%clk 0:00:23.4]} 24... hxg4 {[%clk 0:01:19.8]} 25. Rxg6+
{[%clk 0:00:23.1]} 25... fxg6 {[%clk 0:01:21.2]} 26. Ne7+ {[%clk 0:00:19.7]}
26... Kf7 {[%clk 0:01:17.6]} 27. Qe2 {[%clk 0:00:18.2]} 27... Be5 {[%clk
0:01:14.5]} 28. Qxb5 {[%clk 0:00:13]} 28... Kxe7 {[%clk 0:01:14.2]} 29. hxg4
{[%clk 0:00:13.6]} 29... Rad8 {[%clk 0:01:07.3]} 30. Qb7+ {[%clk 0:00:12.5]}
30... Rd7 {[%clk 0:01:08.3]} 31. Qb5 {[%clk 0:00:10.2]} 31... Rf4 {[%clk
0:01:06.4]} 32. Re1 {[%clk 0:00:07.6]} 32... Rxg4 {[%clk 0:01:05.3]} 33. a6
{[%clk 0:00:07.9]} 33... Rf4 {[%clk 0:00:58.9]} 34. Qd3 {[%clk 0:00:08.7]} 34...
Kf6 {[%clk 0:00:58.5]} 35. g3 {[%clk 0:00:09.8]} 35... Rd4 {[%clk 0:00:59.8]}
36. Qf3+ {[%clk 0:00:09.9]} 36... Kg7 {[%clk 0:01:01.3]} 37. Qg2 {[%clk
0:00:09.5]} 37... Rf7 {[%clk 0:01:02]} 38. Qh3 {[%clk 0:00:10.2]} 38... Rd2
{[%clk 0:01:00.7]} 39. f4 {[%clk 0:00:10.8]} 39... Bd4+ {[%clk 0:01:01.8]} 40.
Kh1 {[%clk 0:00:12.4]} 40... Rxc2 {[%clk 0:00:59.6]} 41. Qe6 {[%clk 0:00:13.2]}
41... Bf2 {[%clk 0:00:58.3]} 42. Rf1 {[%clk 0:00:10.9]} 42... Bxg3 {[%clk
0:00:59.2]} 43. f5 {[%clk 0:00:11.4]} 43... gxf5 {[%clk 0:00:56.5]} 44. Rxf5
{[%clk 0:00:12.4]} 44... Rxf5 {[%clk 0:00:56.2]} 45. Qxf5 {[%clk 0:00:14.3]}
45... Rc1+ {[%clk 0:00:56.9]} 46. Kg2 {[%clk 0:00:15.5]} 46... Rc3 {[%clk
0:00:58.4]} 47. Qd7+ {[%clk 0:00:14.5]} 47... Kg6 {[%clk 0:00:58.5]} 48. Qxa7
{[%clk 0:00:16.4]} 48... Be5 {[%clk 0:00:58.6]} 49. Qb7 {[%clk 0:00:17.2]} 49...
b3 {[%clk 0:00:58.8]} 50. a7 {[%clk 0:00:18.3]} 50... b2 {[%clk 0:00:59.1]} 51.
a8=Q {[%clk 0:00:16.7]} 51... Rc2+ {[%clk 0:00:57.3]} 52. Kf3 {[%clk 0:00:16.4]}
52... Kf5 {[%clk 0:00:58.5]} 53. Qf8+ {[%clk 0:00:16.2]} 53... Bf6 {[%clk
0:00:59.6]} 54. Qh7+ {[%clk 0:00:11.3]} 54... Ke5 {[%clk 0:01:01]} 55. Qe4#
{[%clk 0:00:11.4]} 1-0

[Event "*** Titled Tuesday Blitz"]
[Site "Chess.com"]
[Date "2018.07.03"]
[Round "3"]
[White "Superfelix"]
[Black "plouarzel"]
[Result "0-1"]
[WhiteElo "2359"]
[BlackElo "2483"]
[TimeControl "180+2"]
[EndTime "13:37:15 PDT"]
[Termination "plouarzel won by resignation"]

1. e4 {[%clk 0:03:01.8]} 1... d6 {[%clk 0:03:00.3]} 2. d4 {[%clk 0:03:02.5]}
2... Nf6 {[%clk 0:02:57.4]} 3. Nc3 {[%clk 0:03:03]} 3... e5 {[%clk 0:02:57]} 4.
Nf3 {[%clk 0:03:04]} 4... Nbd7 {[%clk 0:02:55.8]} 5. Bc4 {[%clk 0:03:03.9]} 5...
exd4 {[%clk 0:02:54.9]} 6. Nxd4 {[%clk 0:03:04.4]} 6... Nb6 {[%clk 0:02:53.8]}
7. Be2 {[%clk 0:03:03.7]} 7... Be7 {[%clk 0:02:54.5]} 8. O-O {[%clk 0:03:03.8]}
8... O-O {[%clk 0:02:55.9]} 9. f4 {[%clk 0:03:04.5]} 9... d5 {[%clk 0:02:50.5]}
10. e5 {[%clk 0:03:03.2]} 10... Ne4 {[%clk 0:02:51.6]} 11. Nxe4 {[%clk
0:03:03.3]} 11... dxe4 {[%clk 0:02:52.8]} 12. c3 {[%clk 0:03:03]} 12... Qd5
{[%clk 0:02:31.9]} 13. Nc2 {[%clk 0:03:02.4]} 13... Qxd1 {[%clk 0:02:26.2]} 14.
Rxd1 {[%clk 0:03:00.5]} 14... f6 {[%clk 0:02:26.9]} 15. Be3 {[%clk 0:02:46]}
15... fxe5 {[%clk 0:02:13.7]} 16. fxe5 {[%clk 0:02:47.9]} 16... c6 {[%clk
0:02:10.7]} 17. c4 {[%clk 0:02:42.2]} 17... Be6 {[%clk 0:02:09.6]} 18. b3 {[%clk
0:02:42.5]} 18... Rad8 {[%clk 0:02:08.8]} 19. Rxd8 {[%clk 0:02:38.6]} 19... Rxd8
{[%clk 0:02:08.7]} 20. Rd1 {[%clk 0:02:37]} 20... Rxd1+ {[%clk 0:02:04.5]} 21.
Bxd1 {[%clk 0:02:38.9]} 21... Nd7 {[%clk 0:02:04.4]} 22. Bxa7 {[%clk 0:02:37.5]}
22... Nxe5 {[%clk 0:02:05.6]} 23. Bd4 {[%clk 0:02:24.4]} 23... Nd3 {[%clk
0:02:05.1]} 24. Kf1 {[%clk 0:02:06.9]} 24... Kf7 {[%clk 0:02:03.4]} 25. Be3
{[%clk 0:02:01]} 25... Bd6 {[%clk 0:01:57.9]} 26. h3 {[%clk 0:01:59.8]} 26...
Be5 {[%clk 0:01:43.7]} 27. Nd4 {[%clk 0:01:39.3]} 27... Bd7 {[%clk 0:01:43.1]}
28. Bc2 {[%clk 0:01:35.4]} 28... g6 {[%clk 0:01:38.3]} 29. a3 {[%clk 0:01:27.8]}
29... c5 {[%clk 0:01:14.9]} 30. Ne2 {[%clk 0:01:21.4]} 30... b5 {[%clk
0:01:12.5]} 31. cxb5 {[%clk 0:01:15]} 31... Bxb5 {[%clk 0:01:13]} 32. Kg1 {[%clk
0:01:13.5]} 32... Ke6 {[%clk 0:01:11.3]} 33. Bxd3 {[%clk 0:00:57.6]} 33... exd3
{[%clk 0:01:11]} 34. Nf4+ {[%clk 0:00:58.5]} 34... Kf5 {[%clk 0:01:09.9]} 35.
Nd5 {[%clk 0:00:59.2]} 35... Ke4 {[%clk 0:01:01.8]} 36. a4 {[%clk 0:00:57.2]}
36... Bxa4 {[%clk 0:00:41.4]} 37. bxa4 {[%clk 0:00:51.7]} 37... Kxd5 {[%clk
0:00:42.3]} 38. Kf2 {[%clk 0:00:52.1]} 38... c4 {[%clk 0:00:42.3]} 39. a5 {[%clk
0:00:48]} 39... Kc6 {[%clk 0:00:36.3]} 40. a6 {[%clk 0:00:48.1]} 40... c3 {[%clk
0:00:32.4]} 41. Ke1 {[%clk 0:00:45.6]} 41... Bg3+ {[%clk 0:00:27]} 42. Kd1
{[%clk 0:00:46.5]} 42... Bc7 {[%clk 0:00:21.2]} 43. a7 {[%clk 0:00:45.5]} 43...
Kb7 {[%clk 0:00:21.7]} 44. g4 {[%clk 0:00:40.7]} 44... Bd6 {[%clk 0:00:22.5]}
45. h4 {[%clk 0:00:24.3]} 45... Ba3 {[%clk 0:00:23.7]} 46. h5 {[%clk 0:00:14.9]}
46... gxh5 {[%clk 0:00:23.8]} 47. gxh5 {[%clk 0:00:15.7]} 47... c2+ {[%clk
0:00:24.9]} 48. Ke1 {[%clk 0:00:17.1]} 48... Bb4+ {[%clk 0:00:22.1]} 49. Kf2
{[%clk 0:00:17.2]} 49... d2 {[%clk 0:00:23.1]} 0-1

[Event "*** Titled Tuesday Blitz"]
[Site "Chess.com"]
[Date "2018.07.03"]
[Round "3"]
[White "QDcoach"]
[Black "pedromartinez91"]
[Result "1-0"]
[WhiteElo "2663"]
[BlackElo "2414"]
[TimeControl "180+2"]
[EndTime "13:37:28 PDT"]
[Termination "QDcoach won by checkmate"]

1. d4 {[%clk 0:03:01.9]} 1... Nf6 {[%clk 0:03:00.1]} 2. c4 {[%clk 0:03:03.4]}
2... g6 {[%clk 0:03:00.9]} 3. Nf3 {[%clk 0:03:04.6]} 3... Bg7 {[%clk 0:03:02.4]}
4. g3 {[%clk 0:03:05.9]} 4... O-O {[%clk 0:03:03.2]} 5. Bg2 {[%clk 0:03:07.8]}
5... c6 {[%clk 0:03:04.5]} 6. O-O {[%clk 0:03:09.7]} 6... d5 {[%clk 0:03:06.1]}
7. Qb3 {[%clk 0:03:08.6]} 7... a5 {[%clk 0:03:04]} 8. cxd5 {[%clk 0:03:02.7]}
8... a4 {[%clk 0:03:00.8]} 9. Qd1 {[%clk 0:03:01.3]} 9... cxd5 {[%clk
0:03:00.2]} 10. Nc3 {[%clk 0:03:02.2]} 10... Qa5 {[%clk 0:02:58.3]} 11. Bd2
{[%clk 0:02:58.4]} 11... Nc6 {[%clk 0:02:57.5]} 12. Ne5 {[%clk 0:02:58.8]} 12...
Qa6 {[%clk 0:02:50.4]} 13. Nxc6 {[%clk 0:02:35.2]} 13... bxc6 {[%clk 0:02:52.3]}
14. b3 {[%clk 0:02:35.8]} 14... axb3 {[%clk 0:02:43.4]} 15. axb3 {[%clk
0:02:36.4]} 15... Qxa1 {[%clk 0:02:40.1]} 16. Qxa1 {[%clk 0:02:38.3]} 16... Rxa1
{[%clk 0:02:41.4]} 17. Rxa1 {[%clk 0:02:39.3]} 17... Be6 {[%clk 0:02:39.6]} 18.
Na4 {[%clk 0:02:24.6]} 18... Nd7 {[%clk 0:02:39.1]} 19. Be3 {[%clk 0:02:13.5]}
19... Rb8 {[%clk 0:02:38]} 20. Rc1 {[%clk 0:01:38.8]} 20... Rxb3 {[%clk
0:02:34.7]} 21. h4 {[%clk 0:01:33.7]} 21... Rb4 {[%clk 0:02:29.4]} 22. Nc5
{[%clk 0:01:34.3]} 22... Nxc5 {[%clk 0:02:28.8]} 23. Rxc5 {[%clk 0:01:36.2]}
23... Bd7 {[%clk 0:02:27.1]} 24. Ra5 {[%clk 0:01:33.8]} 24... Rb8 {[%clk
0:01:57.5]} 25. Ra7 {[%clk 0:01:33.4]} 25... Rd8 {[%clk 0:01:57.5]} 26. Bf3
{[%clk 0:01:26.7]} 26... h5 {[%clk 0:01:57.3]} 27. Kg2 {[%clk 0:01:27.8]} 27...
Bf6 {[%clk 0:01:58.2]} 28. Rc7 {[%clk 0:01:25.1]} 28... Be8 {[%clk 0:01:57.6]}
29. Bg5 {[%clk 0:01:21.4]} 29... Bxg5 {[%clk 0:01:52.9]} 30. hxg5 {[%clk
0:01:23.3]} 30... e6 {[%clk 0:01:53.3]} 31. e3 {[%clk 0:01:22.2]} 31... Kf8
{[%clk 0:01:53.7]} 32. Be2 {[%clk 0:01:22.2]} 32... Bd7 {[%clk 0:01:54.3]} 33.
Kf3 {[%clk 0:01:15]} 33... Ke7 {[%clk 0:01:55.2]} 34. Kf4 {[%clk 0:01:15.8]}
34... Kd6 {[%clk 0:01:56.5]} 35. Ra7 {[%clk 0:01:15.8]} 35... Rb8 {[%clk
0:01:52.7]} 36. f3 {[%clk 0:01:15.4]} 36... Re8 {[%clk 0:01:43.5]} 37. e4 {[%clk
0:01:11.2]} 37... dxe4 {[%clk 0:01:43.1]} 38. fxe4 {[%clk 0:01:11.2]} 38... e5+
{[%clk 0:01:44.3]} 39. dxe5+ {[%clk 0:01:11.9]} 39... Ke7 {[%clk 0:01:41]} 40.
Bc4 {[%clk 0:01:11.8]} 40... Rd8 {[%clk 0:01:40.1]} 41. e6 {[%clk 0:01:08.8]}
41... fxe6 {[%clk 0:01:36.9]} 42. Ke5 {[%clk 0:01:10]} 42... Kf8 {[%clk
0:01:23.7]} 43. Kf6 {[%clk 0:01:07.2]} 43... e5 {[%clk 0:01:22.5]} 44. Kxg6
{[%clk 0:01:00.2]} 44... Be8+ {[%clk 0:01:23.6]} 45. Kf6 {[%clk 0:01:01.1]}
45... Rd6+ {[%clk 0:01:20.4]} 46. Kxe5 {[%clk 0:00:55.6]} 46... Rg6 {[%clk
0:01:19.1]} 47. Kf5 {[%clk 0:00:55.4]} 47... c5 {[%clk 0:01:18.8]} 48. e5 {[%clk
0:00:54.3]} 48... Rg7 {[%clk 0:01:16.6]} 49. Ra8 {[%clk 0:00:55]} 49... Ke7
{[%clk 0:01:16.4]} 50. e6 {[%clk 0:00:54.7]} 50... Bc6 {[%clk 0:01:01.3]} 51.
Ra7+ {[%clk 0:00:53.8]} 51... Kf8 {[%clk 0:01:02.7]} 52. Ra6 {[%clk 0:00:49.1]}
52... Be8 {[%clk 0:00:45.3]} 53. Ra8 {[%clk 0:00:45.2]} 53... Ke7 {[%clk
0:00:45.8]} 54. Rc8 {[%clk 0:00:45.7]} 54... Rg8 {[%clk 0:00:20.5]} 55. Rxc5
{[%clk 0:00:44.8]} 55... Kd6 {[%clk 0:00:20.5]} 56. Rd5+ {[%clk 0:00:45.3]}
56... Ke7 {[%clk 0:00:19.7]} 57. Ra5 {[%clk 0:00:45]} 57... Bg6+ {[%clk
0:00:18.9]} 58. Ke5 {[%clk 0:00:45]} 58... Rc8 {[%clk 0:00:18.1]} 59. Ra7+
{[%clk 0:00:45.5]} 59... Kf8 {[%clk 0:00:19.3]} 60. Kf6 {[%clk 0:00:46.6]} 60...
Be8 {[%clk 0:00:18.5]} 61. e7# {[%clk 0:00:47.6]} 1-0

[Event "*** Titled Tuesday Blitz"]
[Site "Chess.com"]
[Date "2018.07.03"]
[Round "3"]
[White "gmjlh"]
[Black "florianschwabeneder"]
[Result "1-0"]
[WhiteElo "2665"]
[BlackElo "2481"]
[TimeControl "180+2"]
[EndTime "13:37:32 PDT"]
[Termination "gmjlh won by resignation"]

1. e4 {[%clk 0:03:01.9]} 1... c5 {[%clk 0:02:59.4]} 2. Nf3 {[%clk 0:03:01.7]}
2... d6 {[%clk 0:03:00.6]} 3. g3 {[%clk 0:02:56.6]} 3... Nc6 {[%clk 0:02:58.9]}
4. Bg2 {[%clk 0:02:52.4]} 4... Nf6 {[%clk 0:02:54.1]} 5. Qe2 {[%clk 0:02:48.1]}
5... g6 {[%clk 0:02:46.9]} 6. O-O {[%clk 0:02:46.9]} 6... Bg7 {[%clk 0:02:47.9]}
7. c3 {[%clk 0:02:43.4]} 7... O-O {[%clk 0:02:43.6]} 8. d4 {[%clk 0:02:41.4]}
8... e5 {[%clk 0:02:24.7]} 9. dxc5 {[%clk 0:02:37]} 9... dxc5 {[%clk 0:02:25]}
10. Nbd2 {[%clk 0:02:30.6]} 10... Qe7 {[%clk 0:02:20.2]} 11. Nc4 {[%clk
0:02:26.3]} 11... Rd8 {[%clk 0:01:59.6]} 12. Re1 {[%clk 0:02:23.5]} 12... h6
{[%clk 0:01:58.8]} 13. h3 {[%clk 0:01:56.2]} 13... Qc7 {[%clk 0:01:34.3]} 14.
Nh2 {[%clk 0:01:54.5]} 14... Be6 {[%clk 0:01:30.9]} 15. Ng4 {[%clk 0:01:52.3]}
15... Nxg4 {[%clk 0:01:21]} 16. hxg4 {[%clk 0:01:52.3]} 16... Qd7 {[%clk
0:01:12.6]} 17. g5 {[%clk 0:01:45]} 17... hxg5 {[%clk 0:01:04.7]} 18. Bxg5
{[%clk 0:01:42.7]} 18... f6 {[%clk 0:01:04.9]} 19. Bc1 {[%clk 0:01:39.7]} 19...
Qd3 {[%clk 0:00:37]} 20. Ne3 {[%clk 0:01:32.6]} 20... Qxe2 {[%clk 0:00:37.3]}
21. Rxe2 {[%clk 0:01:34.5]} 21... Kf7 {[%clk 0:00:37]} 22. Nd5 {[%clk
0:01:26.3]} 22... Ne7 {[%clk 0:00:36.4]} 23. c4 {[%clk 0:01:23.1]} 23... Nc6
{[%clk 0:00:33.2]} 24. Be3 {[%clk 0:01:12.5]} 24... Nd4 {[%clk 0:00:28.7]} 25.
Rd2 {[%clk 0:01:12.9]} 25... Rac8 {[%clk 0:00:20.7]} 26. f4 {[%clk 0:01:05.9]}
26... exf4 {[%clk 0:00:15.9]} 27. gxf4 {[%clk 0:01:05.2]} 27... f5 {[%clk
0:00:14.9]} 28. e5 {[%clk 0:01:06.3]} 28... Bf8 {[%clk 0:00:09.3]} 29. Kf2
{[%clk 0:01:03.6]} 29... b5 {[%clk 0:00:10.3]} 30. b3 {[%clk 0:00:52.1]} 30...
bxc4 {[%clk 0:00:11.5]} 31. bxc4 {[%clk 0:00:54]} 31... Rb8 {[%clk 0:00:12.8]}
32. Rh1 {[%clk 0:00:51.3]} 32... Bg7 {[%clk 0:00:06.6]} 33. Rc1 {[%clk
0:00:34.3]} 33... g5 {[%clk 0:00:05.3]} 34. fxg5 {[%clk 0:00:26]} 34... Bxe5
{[%clk 0:00:05.8]} 35. Nf4 {[%clk 0:00:26.9]} 35... Bxf4 {[%clk 0:00:02.9]} 36.
Bxf4 {[%clk 0:00:27.6]} 36... Rbc8 {[%clk 0:00:04.3]} 37. Rh1 {[%clk 0:00:26.1]}
37... Kg8 {[%clk 0:00:04.1]} 38. Be5 {[%clk 0:00:24.7]} 38... Kf7 {[%clk
0:00:05.5]} 39. Rh6 {[%clk 0:00:22.5]} 39... Bxc4 {[%clk 0:00:06]} 40. Rf6+
{[%clk 0:00:09.9]} 40... Ke7 {[%clk 0:00:04.9]} 41. Bh3 {[%clk 0:00:10.4]} 41...
Be6 {[%clk 0:00:04.7]} 42. Bxd4 {[%clk 0:00:05.2]} 42... cxd4 {[%clk 0:00:05.7]}
43. Re2 {[%clk 0:00:06.6]} 43... Rd6 {[%clk 0:00:05.9]} 44. Bxf5 {[%clk
0:00:06.5]} 44... Rcc6 {[%clk 0:00:06.9]} 45. a4 {[%clk 0:00:04.5]} 45... a5
{[%clk 0:00:07.2]} 46. Kf3 {[%clk 0:00:03.3]} 46... Rb6 {[%clk 0:00:07.2]} 47.
Rexe6+ {[%clk 0:00:03.7]} 47... Rxe6 {[%clk 0:00:08]} 48. Rxe6+ {[%clk
0:00:05.6]} 48... Rxe6 {[%clk 0:00:09.5]} 49. Bxe6 {[%clk 0:00:07.5]} 49... Kxe6
{[%clk 0:00:11]} 50. Ke4 {[%clk 0:00:09.1]} 50... d3 {[%clk 0:00:12.5]} 51. Kxd3
{[%clk 0:00:10.5]} 51... Kf5 {[%clk 0:00:13.9]} 52. Kc4 {[%clk 0:00:12.1]} 52...
Kxg5 {[%clk 0:00:15.3]} 53. Kb5 {[%clk 0:00:14]} 53... Kf6 {[%clk 0:00:16.7]}
54. Kxa5 {[%clk 0:00:15.6]} 1-0

[Event "*** Titled Tuesday Blitz"]
[Site "Chess.com"]
[Date "2018.07.03"]
[Round "3"]
[White "ChainsOfFantasia"]
[Black "TST2014"]
[Result "1-0"]
[WhiteElo "2377"]
[BlackElo "2370"]
[TimeControl "180+2"]
[EndTime "13:37:33 PDT"]
[Termination "ChainsOfFantasia won on time"]

1. d4 {[%clk 0:03:01.9]} 1... Nf6 {[%clk 0:02:11.5]} 2. c4 {[%clk 0:02:54.2]}
2... g6 {[%clk 0:02:12.1]} 3. Nf3 {[%clk 0:02:54.7]} 3... Bg7 {[%clk 0:02:13.6]}
4. g3 {[%clk 0:02:55.7]} 4... O-O {[%clk 0:02:14.9]} 5. Bg2 {[%clk 0:02:57.3]}
5... d6 {[%clk 0:02:15.8]} 6. O-O {[%clk 0:02:58.3]} 6... Nc6 {[%clk 0:02:16.9]}
7. Nc3 {[%clk 0:02:59.5]} 7... a6 {[%clk 0:02:17]} 8. Bf4 {[%clk 0:02:59.9]}
8... e6 {[%clk 0:02:14.6]} 9. Rc1 {[%clk 0:02:48.8]} 9... Qe7 {[%clk 0:02:15.4]}
10. e4 {[%clk 0:02:28.2]} 10... e5 {[%clk 0:02:08.6]} 11. Bg5 {[%clk 0:02:28.3]}
11... Bg4 {[%clk 0:02:05.9]} 12. Nd5 {[%clk 0:02:28.5]} 12... Qd8 {[%clk
0:02:06.1]} 13. dxe5 {[%clk 0:02:25]} 13... Nxe5 {[%clk 0:02:06.3]} 14. h3
{[%clk 0:02:21.2]} 14... Nxf3+ {[%clk 0:02:01.7]} 15. Bxf3 {[%clk 0:02:23.1]}
15... Bxh3 {[%clk 0:02:03.2]} 16. Re1 {[%clk 0:01:47.4]} 16... c6 {[%clk
0:02:02.8]} 17. Nf4 {[%clk 0:01:42.6]} 17... Bc8 {[%clk 0:01:59.2]} 18. c5
{[%clk 0:01:40]} 18... h6 {[%clk 0:01:48]} 19. Bxf6 {[%clk 0:01:38.9]} 19...
Bxf6 {[%clk 0:01:48]} 20. cxd6 {[%clk 0:01:37.9]} 20... Bxb2 {[%clk 0:01:49.6]}
21. e5 {[%clk 0:01:34.3]} 21... Bxc1 {[%clk 0:01:49.3]} 22. Qxc1 {[%clk
0:01:34.8]} 22... Re8 {[%clk 0:01:47.8]} 23. Nxg6 {[%clk 0:01:18.6]} 23... fxg6
{[%clk 0:01:46.5]} 24. Qxh6 {[%clk 0:01:19]} 24... Re6 {[%clk 0:01:43.7]} 25.
Bg4 {[%clk 0:01:08]} 25... Qe8 {[%clk 0:01:36.7]} 26. Bxe6+ {[%clk 0:00:41.4]}
26... Bxe6 {[%clk 0:01:35.1]} 27. Re4 {[%clk 0:00:41.9]} 27... Qf7 {[%clk
0:01:35.7]} 28. Rf4 {[%clk 0:00:40]} 28... Qg7 {[%clk 0:01:36.6]} 29. Qg5 {[%clk
0:00:41.2]} 29... Re8 {[%clk 0:01:11.8]} 30. Rf6 {[%clk 0:00:41]} 30... Kh7
{[%clk 0:01:08.2]} 31. Qf4 {[%clk 0:00:23.9]} 31... c5 {[%clk 0:00:57.5]} 32.
Qf3 {[%clk 0:00:19.2]} 32... b5 {[%clk 0:00:54.4]} 33. Qh1+ {[%clk 0:00:17.6]}
33... Kg8 {[%clk 0:00:51.8]} 34. Qe4 {[%clk 0:00:18.7]} 34... Kh7 {[%clk
0:00:32.4]} 35. Qh1+ {[%clk 0:00:15.2]} 35... Qh6 {[%clk 0:00:30.7]} 36. Qb7+
{[%clk 0:00:16.1]} 36... Kg8 {[%clk 0:00:30.2]} 37. d7 {[%clk 0:00:15.7]} 37...
Bxd7 {[%clk 0:00:13.3]} 38. Qxd7 {[%clk 0:00:15.9]} 38... Rf8 {[%clk 0:00:12.3]}
39. Qe6+ {[%clk 0:00:12.9]} 39... Kh8 {[%clk 0:00:13.1]} 40. Rxg6 {[%clk
0:00:13.2]} 40... Qh7 {[%clk 0:00:08.1]} 41. Rh6 {[%clk 0:00:12.3]} 41... c4
{[%clk 0:00:09.2]} 42. Rxh7+ {[%clk 0:00:11.3]} 42... Kxh7 {[%clk 0:00:10.7]}
43. Qe7+ {[%clk 0:00:12.7]} 43... Kg8 {[%clk 0:00:12]} 44. Qg5+ {[%clk
0:00:13.6]} 44... Kf7 {[%clk 0:00:12.8]} 45. Qf6+ {[%clk 0:00:13.3]} 45... Ke8
{[%clk 0:00:13.8]} 46. Qc6+ {[%clk 0:00:14.2]} 46... Ke7 {[%clk 0:00:14.4]} 47.
Qd6+ {[%clk 0:00:15.5]} 47... Kf7 {[%clk 0:00:15.6]} 48. e6+ {[%clk 0:00:17.3]}
48... Kg7 {[%clk 0:00:16.1]} 49. Qd7+ {[%clk 0:00:17.8]} 49... Kg8 {[%clk
0:00:16.4]} 50. e7 {[%clk 0:00:18.9]} 50... c3 {[%clk 0:00:17.8]} 51. Qg4+
{[%clk 0:00:18.8]} 1-0